bitfinex-derivatives/quotes_BTCF0:USTF0_20260207
["timestamp","ask_amount","ask_price","bid_price","bid_amount"]
[1770504009252,0.014386,69557.0,69543.0,0.21830261]
[1770504015354,0.014387,69555.0,69543.0,0.21830261]
[1770504016256,0.22437475,69558.0,69543.0,0.21830261]
[1770504017359,0.014387,69555.0,69543.0,0.21830261]
[1770504024966,0.014386,69558.0,69543.0,0.21830261]
[1770504025370,0.014385,69561.0,69545.0,0.23172879]
[1770504025669,0.014384,69569.0,69552.0,0.23172879]
[1770504027664,0.22437475,69577.0,69554.0,0.23172879]
[1770504029066,0.014382,69576.0,69555.0,0.014386]
[1770504029263,0.014382,69576.0,69556.0,0.23172879]
[1770504030370,0.014383,69574.0,69558.0,0.23172879]
[1770504032166,0.015382,69577.0,69560.0,0.23172879]
[1770504032367,0.001,69577.0,69560.0,0.23172879]
[1770504032570,0.014381,69580.0,69560.0,0.23172879]
[1770504032772,0.014381,69580.0,69564.0,0.23172879]
[1770504032971,0.014381,69584.0,69566.0,0.23172879]
[1770504033182,0.014379,69592.0,69572.0,0.23172879]
[1770504033471,0.014379,69590.0,69572.0,0.23172879]
[1770504034272,0.014378,69594.0,69572.0,0.23172879]
[1770504034573,0.014379,69592.0,69573.0,0.014383]
[1770504034769,0.014379,69592.0,69574.0,0.23172879]
[1770504035774,0.23875275,69595.0,69576.0,0.22822083]
[1770504036276,0.22437475,69595.0,69578.0,0.22822083]
[1770504036874,0.23866058,69599.0,69578.0,0.22822083]
[1770504038978,0.23966058,69599.0,69578.0,0.22822083]
[1770504039976,0.001,69599.0,69589.0,0.22822083]
[1770504040164,0.22428358,69605.0,69589.0,0.22822083]
[1770504040774,0.014376,69608.0,69589.0,0.22822083]
[1770504041570,0.23865958,69608.0,69589.0,0.22822083]
[1770504042474,0.23965958,69608.0,69589.0,0.22822083]
[1770504042968,0.015376,69608.0,69589.0,0.22822083]
[1770504044877,0.014376,69608.0,69589.0,0.22822083]
[1770504049274,0.014376,69608.0,69588.0,0.01438]
[1770504049275,0.014379,69592.0,69575.0,0.22822083]
[1770504049578,0.01438,69588.0,69575.0,0.22822083]
[1770504049782,0.23866358,69586.0,69575.0,0.21270171]
[1770504050372,0.22428358,69581.0,69561.0,0.014385]
[1770504050672,0.014383,69574.0,69562.0,0.22822083]
[1770504069195,0.21625208,69577.0,69562.0,0.22822083]
[1770504070492,0.014383,69573.0,69562.0,0.22822083]
[1770504081393,0.014382,69576.0,69562.0,0.22822083]
[1770504091712,0.65281369,69588.0,69562.0,0.22822083]
[1770504091919,0.01438,69586.0,69567.0,0.21733641]
[1770504092106,0.014379,69589.0,69569.0,0.21733641]
[1770504093311,0.01438,69587.0,69569.0,0.21733641]
[1770504099117,0.014379,69591.0,69570.0,0.014383]
[1770504099322,0.014379,69591.0,69571.0,0.23585711]
[1770504102312,0.014379,69591.0,69573.0,0.23585711]
[1770504104623,0.01438,69589.0,69573.0,0.23585711]
[1770504109529,0.014379,69592.0,69573.0,0.23585711]
[1770504113127,0.22429717,69605.0,69578.0,0.23585711]
[1770504113327,0.014376,69604.0,69586.0,0.23585711]
[1770504118733,0.014376,69604.0,69567.0,0.17249732]
[1770504118734,0.22429717,69588.0,69572.0,0.23585711]
[1770504118931,0.23867817,69583.0,69561.0,0.23585711]
[1770504119626,0.014382,69579.0,69561.0,0.23585711]
[1770504119832,0.014382,69579.0,69572.0,0.001]
[1770504120034,0.23867917,69577.0,69565.0,0.23585711]
[1770504120628,0.23867917,69577.0,69555.0,0.23585711]
[1770504121028,0.23867917,69577.0,69554.0,0.12950023]
[1770504121029,0.23867917,69577.0,69557.0,0.23585711]
[1770504121436,0.014383,69574.0,69557.0,0.23585711]
[1770504135040,0.014383,69574.0,69557.0,0.25024311]
[1770504138350,0.22429717,69577.0,69546.0,0.17249732]
[1770504138351,0.014382,69577.0,69560.0,0.21546486]
[1770504144956,0.014382,69575.0,69560.0,0.21546486]
[1770504156061,0.43089515,69595.0,69554.0,0.22466892]
[1770504156062,0.014385,69561.0,69554.0,0.22466892]
[1770504156264,0.014385,69561.0,69545.0,0.17249732]
[1770504156265,0.014388,69550.0,69538.0,0.04684181]
[1770504156959,0.014388,69546.0,69538.0,0.04684181]
[1770504157159,0.014383,69571.0,69533.0,0.00019698]
[1770504157160,0.22524297,69549.0,69533.0,0.00019698]
[1770504157366,0.014389,69545.0,69533.0,0.00019698]
[1770504157769,0.25012062,69548.0,69533.0,0.00019698]
[1770504159265,0.014388,69546.0,69533.0,0.00019698]
[1770504159463,0.014389,69541.0,69533.0,0.00019698]
[1770504159658,0.014389,69541.0,69533.0,9.8e-07]
[1770504163065,0.23810836,69540.0,69521.0,0.014393]
[1770504163271,0.014391,69534.0,69515.0,0.014395]
[1770504164268,0.014391,69534.0,69517.0,0.014394]
[1770504173982,0.23827021,69536.0,69517.0,0.014394]
[1770504174877,0.014391,69535.0,69517.0,0.014394]
[1770504177787,0.25251179,69535.0,69517.0,0.014394]
[1770504183194,0.23815539,69528.0,69513.0,0.014395]
[1770504189287,0.23795171,69526.0,69509.0,0.1147994]
[1770504189596,0.23795171,69526.0,69502.0,0.1147994]
[1770504189997,0.23795171,69522.0,69501.0,0.1147994]
[1770504190197,0.23795171,69522.0,69500.0,0.1147994]
[1770504190599,0.23795171,69522.0,69501.0,0.33001077]
[1770504190800,0.23795171,69522.0,69501.0,0.1147994]
[1770504191299,0.014393,69521.0,69505.0,0.014397]
[1770504193100,0.2377057,69520.0,69505.0,0.014397]
[1770504195795,0.2377057,69520.0,69502.0,0.014397]
[1770504196301,0.23786446,69518.0,69502.0,0.014397]
[1770504198302,0.23782567,69516.0,69499.0,0.014398]
[1770504199901,0.23782567,69516.0,69497.0,0.1147994]
[1770504199902,0.23781775,69514.0,69497.0,0.1147994]
[1770504200102,0.23781775,69514.0,69496.0,0.1291984]
[1770504200301,0.23781775,69514.0,69496.0,0.014399]
[1770504200808,0.23781775,69514.0,69492.0,0.17249732]
[1770504200809,0.2377827,69510.0,69493.0,0.1147994]
[1770504201100,0.2377827,69510.0,69489.0,0.1147994]
[1770504201308,0.2377827,69510.0,69488.0,0.1147994]
[1770504202203,0.237775,69508.0,69487.0,0.1147994]
[1770504203002,0.237775,69508.0,69488.0,0.001]
[1770504204807,0.237775,69508.0,69486.0,0.014401]
[1770504210403,0.237775,69508.0,69482.0,0.12925221]
[1770504210602,0.23088281,69499.0,69481.0,0.014402]
[1770504211512,0.23088281,69499.0,69477.0,0.014402]
[1770504212208,0.23216761,69497.0,69477.0,0.014402]
[1770504212614,0.014394,69521.0,69477.0,0.014402]
[1770504212615,0.23216761,69495.0,69477.0,0.014402]
[1770504215414,0.23216761,69495.0,69477.0,0.015402]
[1770504216208,0.23216761,69495.0,69477.0,0.014402]
[1770504227621,0.23216761,69495.0,69474.0,0.014403]
[1770504227820,0.014395,69513.0,69470.0,0.014404]
[1770504227821,0.23082875,69490.0,69470.0,0.014404]
[1770504229332,0.23087985,69488.0,69470.0,0.014404]
[1770504230524,0.23087985,69488.0,69472.0,0.014403]
[1770504238642,0.014395,69513.0,69475.0,0.17423204]
[1770504238643,0.1991213,69494.0,69475.0,0.17423204]
[1770504240738,0.014399,69493.0,69475.0,0.17423204]
[1770504240939,0.1991213,69492.0,69475.0,0.17423204]
[1770504243240,0.1991213,69492.0,69475.0,0.17289551]
[1770504244146,0.1991213,69492.0,69475.0,0.014403]
[1770504250944,0.20373658,69490.0,69471.0,0.014404]
[1770504251752,0.20373658,69490.0,69471.0,0.17632658]
[1770504253052,0.18995681,69488.0,69471.0,0.17632658]
[1770504253554,0.18995681,69486.0,69468.0,0.11485021]
[1770504253741,0.18995681,69484.0,69467.0,0.11485021]
[1770504253946,0.18995681,69484.0,69468.0,0.014404]
[1770504256855,0.18995681,69484.0,69470.0,0.014404]
[1770504260249,0.18995681,69484.0,69466.0,0.11527808]
[1770504261455,0.18995681,69484.0,69467.0,0.014405]
[1770504271968,0.20435781,69484.0,69464.0,0.014405]
[1770504273061,0.18995681,69481.0,69464.0,0.014405]
[1770504273262,0.18995681,69479.0,69461.0,0.014406]
[1770504273473,0.18995681,69479.0,69457.0,0.18798864]
[1770504274264,0.18995681,69479.0,69459.0,0.014406]
[1770504274765,0.18995681,69479.0,69459.0,0.18750546]
[1770504276360,0.18995681,69479.0,69459.0,0.014406]
[1770504276559,0.18526729,69477.0,69454.0,0.014407]
[1770504276764,0.18526729,69474.0,69457.0,0.014407]
[1770504276967,0.18526729,69474.0,69453.0,0.20223499]
[1770504278062,0.014399,69495.0,69449.0,0.01454912]
[1770504278063,0.18526729,69470.0,69449.0,0.01454912]
[1770504278263,0.18526729,69468.0,69449.0,0.01454912]
[1770504278863,0.18526729,69461.0,69449.0,0.00014112]
[1770504279060,0.18526729,69461.0,69441.0,0.01441]
[1770504280768,0.18526729,69457.0,69437.0,0.014411]
[1770504281567,0.014407,69456.0,69437.0,0.014411]
[1770504281869,0.18526729,69455.0,69434.0,0.014411]
[1770504282866,0.18526729,69455.0,69434.0,0.18855526]
[1770504283774,0.18526729,69455.0,69437.0,0.001]
[1770504284169,0.18526729,69453.0,69437.0,0.001]
[1770504284368,0.18526729,69453.0,69434.0,0.014411]
[1770504284568,0.18526729,69453.0,69434.0,0.015411]
[1770504285162,0.18526729,69453.0,69434.0,0.19053609]
[1770504286068,0.18526729,69453.0,69434.0,0.18953609]
[1770504286268,0.18526729,69453.0,69436.0,0.014411]
[1770504289273,0.18526729,69453.0,69436.0,0.18710618]
[1770504290872,0.18526729,69453.0,69438.0,0.17266414]
[1770504291173,0.18526729,69460.0,69442.0,0.01441]
[1770504291373,0.18526729,69460.0,69442.0,0.18673666]
[1770504292768,0.18526729,69460.0,69445.0,0.18606798]
[1770504293072,0.11414714,69460.0,69445.0,0.18606798]
[1770504293274,0.19967229,69465.0,69445.0,0.18606798]
[1770504293669,0.19967229,69465.0,69448.0,0.19099379]
[1770504293977,0.18526729,69465.0,69449.0,0.20540179]
[1770504294668,0.18526729,69465.0,69452.0,0.014408]
[1770504295073,0.18526729,69465.0,69452.0,0.20540179]
[1770504295375,0.18526729,69465.0,69455.0,0.014407]
[1770504295970,0.18526729,69469.0,69458.0,0.014406]
[1770504296277,0.18526729,69469.0,69458.0,0.20539979]
[1770504296577,0.18526729,69486.0,69465.0,0.19099379]
[1770504296775,0.18526729,69484.0,69467.0,0.20539879]
[1770504298072,0.18526729,69484.0,69470.0,0.20539779]
[1770504298784,0.18526729,69484.0,69472.0,0.014403]
[1770504299882,0.18526729,69484.0,69472.0,0.20539679]
[1770504300680,0.18526729,69491.0,69472.0,0.20539679]
[1770504301379,0.18526729,69491.0,69475.0,0.19099379]
[1770504301575,0.18526729,69511.0,69490.0,0.20539379]
[1770504301872,0.18526729,69511.0,69493.0,0.014399]
[1770504303477,0.014392,69527.0,69481.0,0.19099379]
[1770504303687,0.014392,69527.0,69470.0,0.17249732]
[1770504303688,0.18526729,69499.0,69477.0,0.014403]
[1770504303878,0.014393,69523.0,69477.0,0.014403]
[1770504303879,0.18526729,69497.0,69477.0,0.014403]
[1770504304183,0.18526729,69497.0,69473.0,0.014403]
[1770504304571,0.18526729,69495.0,69473.0,0.014403]
[1770504305772,0.18508822,69493.0,69471.0,0.19099379]
[1770504306779,0.18508822,69493.0,69462.0,0.18549308]
[1770504306983,0.014395,69515.0,69457.0,0.11527808]
[1770504306984,0.18508822,69478.0,69459.0,0.014406]
[1770504307977,0.014396,69507.0,69450.0,0.11527808]
[1770504307978,0.18508822,69490.0,69467.0,0.18549308]
[1770504308584,0.18508822,69490.0,69475.0,0.18549308]
[1770504309989,0.18508822,69490.0,69476.0,0.014403]
[1770504310185,0.18608822,69490.0,69476.0,0.19989608]
[1770504310784,0.18508822,69495.0,69479.0,0.19989508]
[1770504314187,0.18508822,69495.0,69475.0,0.014403]
[1770504316490,0.1875518,69493.0,69475.0,0.014403]
[1770504316697,0.1875518,69491.0,69471.0,0.014404]
[1770504321092,0.0144,69490.0,69471.0,0.014404]
[1770504321283,0.1875518,69487.0,69468.0,0.014404]
[1770504321483,0.014397,69503.0,69463.0,0.20308467]
[1770504321484,0.1875518,69483.0,69463.0,0.20308467]
[1770504323195,0.1875518,69481.0,69463.0,0.20308467]
[1770504329396,0.1875518,69479.0,69463.0,0.20308467]
[1770504329792,0.1875518,69477.0,69463.0,0.20308467]
[1770504330294,0.1875518,69477.0,69463.0,0.18867967]
[1770504331089,0.014403,69476.0,69463.0,0.18867967]
[1770504331287,0.1875518,69475.0,69463.0,0.18867967]
[1770504331785,0.2019548,69475.0,69463.0,0.18867967]
[1770504332495,0.2019548,69475.0,69463.0,0.18967967]
[1770504332697,0.1875518,69475.0,69463.0,0.18967967]
[1770504333197,0.1875518,69475.0,69463.0,0.18867967]
[1770504333899,0.1875518,69475.0,69458.0,0.014406]
[1770504334492,0.1875518,69479.0,69462.0,0.20308567]
[1770504334698,0.1875518,69479.0,69462.0,0.18867967]
[1770504335703,0.17784826,69477.0,69462.0,0.18867967]
[1770504336202,0.17784826,69477.0,69459.0,0.014406]
[1770504337393,0.17784826,69475.0,69459.0,0.014406]
[1770504337794,0.014403,69476.0,69459.0,0.18216276]
[1770504337993,0.19225026,69479.0,69459.0,0.18216276]
[1770504339992,0.014403,69477.0,69459.0,0.18216276]
[1770504341303,0.17784826,69476.0,69459.0,0.014406]
[1770504341501,0.17784826,69474.0,69456.0,0.014407]
[1770504342003,0.17784826,69474.0,69456.0,0.18216376]
[1770504343791,0.17784826,69472.0,69456.0,0.18216376]
[1770504343992,0.19225226,69471.0,69452.0,0.014408]
[1770504344203,0.17784826,69468.0,69451.0,0.16775676]
[1770504344407,0.17784826,69466.0,69451.0,0.16775676]
[1770504345099,0.17784826,69466.0,69448.0,0.014408]
[1770504345498,0.17784826,69466.0,69448.0,0.18216476]
[1770504346905,0.17784826,69466.0,69448.0,0.014408]
[1770504348093,0.17784826,69466.0,69448.0,0.18216476]
[1770504348295,0.17784826,69464.0,69448.0,0.16775676]
[1770504349408,0.17784826,69464.0,69445.0,0.29718336]
[1770504351104,0.17784826,69462.0,69445.0,0.28277436]
[1770504351410,0.17784826,69462.0,69446.0,0.16775676]
[1770504352411,0.17784826,69462.0,69446.0,0.28277436]
[1770504353907,0.17784826,69460.0,69446.0,0.28277436]
[1770504354112,0.17784826,69460.0,69446.0,0.16775676]
[1770504355012,0.17784826,69460.0,69445.0,0.1150176]
[1770504355315,0.17784826,69460.0,69443.0,0.1150176]
[1770504355513,0.17784826,69455.0,69439.0,0.16775676]
[1770504355714,0.17784826,69453.0,69439.0,0.16775676]
[1770504355912,0.17784826,69451.0,69439.0,0.16775676]
[1770504356215,0.17784826,69451.0,69435.0,0.11516519]
[1770504356509,0.19225626,69451.0,69433.0,0.28277436]
[1770504356806,0.19225626,69451.0,69433.0,0.16775676]
[1770504357717,0.17784826,69444.0,69433.0,0.16775676]
[1770504358015,0.17784826,69444.0,69428.0,0.16775676]
[1770504359804,0.17784826,69444.0,69424.0,0.1150176]
[1770504360006,0.01441,69443.0,69423.0,0.18217076]
[1770504360214,0.19225826,69443.0,69423.0,0.18217076]
[1770504362512,0.17784826,69439.0,69423.0,0.16775676]
[1770504362912,0.17784826,69437.0,69423.0,0.16775676]
[1770504363809,0.17784826,69437.0,69423.0,0.16875676]
[1770504364807,0.19225926,69437.0,69417.0,0.16775676]
[1770504365112,0.17784826,69432.0,69415.0,0.18217176]
[1770504365412,0.17784826,69430.0,69415.0,0.16775676]
[1770504365812,0.17784826,69430.0,69412.0,0.014416]
[1770504366608,0.1734274,69427.0,69409.0,0.17868791]
[1770504367007,0.1734274,69427.0,69409.0,0.014417]
[1770504367207,0.1734274,69427.0,69409.0,0.17868791]
[1770504368314,0.1734274,69425.0,69405.0,0.014417]
[1770504368817,0.1734274,69423.0,69404.0,0.16427091]
[1770504369016,0.1734274,69419.0,69404.0,0.16427091]
[1770504369320,0.1734274,69419.0,69396.0,0.16427091]
[1770504369617,0.1734274,69417.0,69396.0,0.17868991]
[1770504369810,0.1734274,69417.0,69400.0,0.16427091]
[1770504370915,0.1734274,69417.0,69393.0,0.16427091]
[1770504371520,0.1734274,69417.0,69396.0,0.16427091]
[1770504372414,0.1734274,69417.0,69399.0,0.17320846]
[1770504375233,0.16899501,69409.0,69392.0,0.0002]
[1770504375724,0.16899501,69409.0,69386.0,0.18762946]
[1770504376226,0.16899501,69415.0,69395.0,0.18762846]
[1770504376428,0.16899501,69420.0,69399.0,0.17320846]
[1770504376622,0.16899501,69425.0,69401.0,0.17320846]
[1770504376935,0.16899501,69423.0,69401.0,0.17320846]
[1770504378420,0.16899501,69421.0,69401.0,0.17320846]
[1770504379428,0.16899501,69419.0,69396.0,0.18762746]
[1770504382331,0.16899501,69419.0,69400.0,0.17320846]
[1770504382735,0.16899501,69419.0,69402.0,0.17320846]
[1770504384128,0.16899501,69417.0,69402.0,0.17320846]
[1770504385434,0.01441,69440.0,69406.0,0.18762546]
[1770504385435,0.16899501,69427.0,69406.0,0.18762546]
[1770504385625,0.072043,69451.0,69415.0,0.014415]
[1770504385626,0.16899501,69435.0,69415.0,0.014415]
[1770504385821,0.16899501,69435.0,69416.0,0.17320846]
[1770504386124,0.16899501,69433.0,69416.0,0.17320846]
[1770504387132,0.16899501,69433.0,69418.0,0.17320846]
[1770504388228,0.16899501,69427.0,69404.0,0.17340846]
[1770504388434,0.16899501,69425.0,69409.0,0.014417]
[1770504388629,0.16899501,69425.0,69405.0,0.014417]
[1770504389628,0.16899501,69423.0,69405.0,0.014417]
[1770504389825,0.16899501,69423.0,69404.0,0.17320846]
[1770504390032,0.16899501,69421.0,69406.0,0.014417]
[1770504391831,0.16899501,69421.0,69407.0,0.17320846]
[1770504392129,0.16899501,69421.0,69407.0,0.18762546]
[1770504392324,0.16899501,69428.0,69409.0,0.18762446]
[1770504392527,0.16899501,69428.0,69414.0,0.18762446]
[1770504393929,0.014412,69433.0,69414.0,0.18762446]
[1770504394832,0.16899501,69434.0,69417.0,0.17320846]
[1770504395536,0.16899501,69434.0,69422.0,0.014414]
[1770504395733,0.0816806,69434.0,69422.0,0.1762798]
[1770504395941,0.43089515,69453.0,69424.0,0.014413]
[1770504395942,0.15466983,69449.0,69424.0,0.014413]
[1770504396438,0.15466983,69446.0,69424.0,0.1762788]
[1770504396736,0.15466983,69443.0,69430.0,0.014412]
[1770504396933,0.15466983,69451.0,69436.0,0.1618658]
[1770504397140,0.93301186,69476.0,69439.0,0.1618658]
[1770504397141,0.15466983,69459.0,69439.0,0.1618658]
[1770504397329,0.15466983,69465.0,69449.0,0.1618658]
[1770504397528,0.014404,69470.0,69449.0,0.1618658]
[1770504397731,0.15466983,69470.0,69451.0,0.1618658]
[1770504397932,0.014403,69476.0,69462.0,0.1618658]
[1770504398129,0.16907283,69476.0,69454.0,0.1618658]
[1770504398536,0.16907383,69470.0,69454.0,0.1618658]
[1770504398839,0.16907383,69470.0,69449.0,0.014408]
[1770504399034,0.15466983,69470.0,69452.0,0.014408]
[1770504399539,0.16907383,69470.0,69448.0,0.014408]
[1770504400132,0.15466983,69462.0,69441.0,0.1762758]
[1770504401741,0.16907583,69462.0,69441.0,0.1762758]
[1770504402247,0.014401,69485.0,69425.0,0.1618658]
[1770504402248,0.15466983,69456.0,69425.0,0.1618658]
[1770504402534,0.15466983,69447.0,69425.0,0.1618658]
[1770504402739,0.15466983,69447.0,69429.0,0.0002]
[1770504403340,0.014409,69446.0,69429.0,0.0002]
[1770504403541,0.15466983,69445.0,69429.0,0.0002]
[1770504403941,0.15466983,69445.0,69425.0,0.1618658]
[1770504404546,0.15466983,69445.0,69422.0,0.014414]
[1770504404938,0.15466983,69445.0,69420.0,0.1618658]
[1770504405241,0.15466983,69445.0,69408.0,0.11451296]
[1770504405242,0.15466983,69445.0,69423.0,0.1618658]
[1770504405639,0.15466983,69445.0,69426.0,0.1762788]
[1770504408844,0.15466983,69453.0,69431.0,0.1618658]
[1770504409030,0.15466983,69453.0,69433.0,0.1618658]
[1770504409640,0.014408,69452.0,69433.0,0.1618658]
[1770504410948,0.001,69453.0,69435.0,0.1618658]
[1770504411241,0.001,69453.0,69440.0,0.1618658]
[1770504411638,0.014406,69460.0,69440.0,0.1618658]
[1770504412448,0.014405,69465.0,69446.0,0.014409]
[1770504412842,0.15466983,69466.0,69449.0,0.1762738]
[1770504416947,0.014404,69471.0,69452.0,0.1618658]
[1770504417246,0.15466983,69472.0,69454.0,0.1618658]
[1770504419238,0.15466983,69472.0,69455.0,0.1762728]
[1770504419648,0.15466983,69494.0,69459.0,0.1618658]
[1770504419850,0.014402,69480.0,69464.0,0.1618658]
[1770504420546,0.15466983,69504.0,69464.0,0.1618658]
[1770504420748,0.15466983,69489.0,69469.0,0.1618658]
[1770504422144,0.15466983,69487.0,69463.0,0.014405]
[1770504422350,0.15466983,69482.0,69463.0,0.014405]
[1770504423448,0.15466983,69480.0,69459.0,0.014406]
[1770504423650,0.16907283,69476.0,69457.0,0.014407]
[1770504423846,0.16907283,69476.0,69453.0,0.014407]
[1770504424455,0.15466983,69472.0,69450.0,0.1618658]
[1770504425452,0.15466983,69472.0,69451.0,0.014408]
[1770504426152,0.15511425,69470.0,69451.0,0.014408]
[1770504426752,0.1546247,69468.0,69447.0,0.014409]
[1770504427253,0.1546247,69466.0,69444.0,0.17329327]
[1770504427851,0.15412646,69465.0,69444.0,0.17329327]
[1770504428349,0.16123466,69454.0,69431.0,0.11451296]
[1770504428557,0.16123466,69451.0,69428.0,0.014412]
[1770504428849,0.16123466,69448.0,69428.0,0.014412]
[1770504429057,0.16123466,69448.0,69428.0,0.17329627]
[1770504429546,0.17564366,69444.0,69428.0,0.15888427]
[1770504430647,0.17564366,69444.0,69420.0,0.15888427]
[1770504431353,0.17257655,69441.0,69420.0,0.15888427]
[1770504432150,0.16289899,69438.0,69420.0,0.15888427]
[1770504434358,0.16289899,69438.0,69416.0,0.14671967]
[1770504434553,0.014411,69435.0,69416.0,0.14671967]
[1770504435153,0.16289999,69430.0,69409.0,0.14671967]
[1770504435650,0.014413,69427.0,69409.0,0.14671967]
[1770504439954,0.014413,69427.0,69409.0,0.16113667]
[1770504443564,0.014412,69430.0,69413.0,0.16113567]
[1770504443867,0.14848799,69429.0,69413.0,0.16113567]
[1770504444257,0.14848799,69429.0,69413.0,0.14671967]
[1770504444760,0.014412,69430.0,69413.0,0.14671967]
[1770504456867,0.16419899,69430.0,69413.0,0.14671967]
[1770504458973,0.014412,69430.0,69413.0,0.14671967]
[1770504460071,0.014413,69428.0,69413.0,0.14671967]
[1770504468591,0.014412,69431.0,69413.0,0.14671967]
[1770504468782,0.014412,69431.0,69415.0,0.15921767]
[1770504469179,0.01441,69441.0,69423.0,0.15921767]
[1770504469381,0.14676455,69465.0,69445.0,0.15921767]
[1770504469685,0.0144,69491.0,69445.0,0.15921767]
[1770504469686,0.14676455,69487.0,69461.0,0.15921767]
[1770504469879,0.014398,69501.0,69458.0,0.15921767]
[1770504469880,0.014404,69472.0,69458.0,0.15921767]
[1770504470076,0.16116855,69472.0,69458.0,0.15921767]
[1770504470279,0.16121942,69469.0,69450.0,0.15921767]
[1770504470687,0.001,69465.0,69450.0,0.15921767]
[1770504471386,0.16121942,69469.0,69450.0,0.15921767]
[1770504473192,0.014405,69466.0,69450.0,0.15921767]
[1770504474293,0.15845515,69466.0,69450.0,0.15921767]
[1770504474887,0.014405,69463.0,69450.0,0.15921767]
[1770504475486,0.014406,69460.0,69442.0,0.15921767]
[1770504475690,0.014402,69479.0,69442.0,0.15921767]
[1770504475691,0.1579017,69459.0,69442.0,0.15921767]
[1770504475993,0.1579017,69459.0,69437.0,0.17362867]
[1770504476197,0.1579017,69457.0,69437.0,0.15921767]
[1770504477491,0.014407,69455.0,69437.0,0.15921767]
[1770504479291,0.1723087,69455.0,69437.0,0.15921767]
[1770504480894,0.014408,69452.0,69437.0,0.15921767]
[1770504481095,0.1723087,69455.0,69437.0,0.15921767]
[1770504481797,0.17226748,69452.0,69437.0,0.15921767]
[1770504482986,0.1579017,69448.0,69429.0,0.15921767]
[1770504484403,0.1579017,69448.0,69431.0,0.15921767]
[1770504486696,0.014408,69452.0,69433.0,0.14468689]
[1770504487096,0.1663585,69452.0,69433.0,0.14468689]
[1770504487795,0.014408,69449.0,69433.0,0.14468689]
[1770504489298,0.1663585,69452.0,69433.0,0.14468689]
[1770504492993,0.1663585,69452.0,69433.0,0.15909889]
[1770504495407,0.1663585,69452.0,69434.0,0.14594407]
[1770504496205,0.1663585,69452.0,69434.0,0.2606115]
[1770504497108,0.1663585,69452.0,69435.0,0.33103759]
[1770504497298,0.1663585,69452.0,69435.0,0.11466743]
[1770504497497,0.014405,69466.0,69434.0,0.2606115]
[1770504497498,0.15898854,69450.0,69434.0,0.2606115]
[1770504497900,0.15898854,69450.0,69434.0,0.14594407]
[1770504498205,0.15898854,69450.0,69434.0,0.2606115]
[1770504499209,0.15898854,69450.0,69436.0,0.14594407]
[1770504499609,0.014408,69453.0,69436.0,0.14594407]
[1770504500096,0.014408,69453.0,69437.0,0.14594407]
[1770504501200,0.014408,69453.0,69437.0,0.2606115]
[1770504501393,0.014408,69453.0,69438.0,0.14594407]
[1770504502206,0.014408,69451.0,69438.0,0.14594407]
[1770504503110,0.014408,69451.0,69438.0,0.2606115]
[1770504503412,0.014408,69451.0,69439.0,0.14594407]
[1770504506302,0.14458054,69455.0,69439.0,0.14594407]
[1770504506303,0.014409,69449.0,69439.0,0.14594407]
[1770504508315,0.14458054,69461.0,69439.0,0.14594407]
[1770504509214,0.014408,69451.0,69439.0,0.14594407]
[1770504527524,0.15461831,69457.0,69439.0,0.14594407]
[1770504528325,0.014408,69451.0,69439.0,0.14594407]
[1770504530928,0.014406,69463.0,69442.0,0.14451543]
[1770504531322,0.014406,69460.0,69445.0,0.14451543]
[1770504532526,0.014407,69458.0,69445.0,0.14451543]
[1770504541832,0.014404,69473.0,69445.0,0.14451543]
[1770504541833,0.15461831,69473.0,69445.0,0.14451543]
[1770504542033,0.014406,69463.0,69445.0,0.15892443]
[1770504542927,0.014406,69463.0,69445.0,0.14451543]
[1770504543328,0.014405,69467.0,69445.0,0.15892443]
[1770504543941,0.014405,69464.0,69445.0,0.15892443]
[1770504544629,0.014405,69464.0,69445.0,0.14451543]
[1770504547338,0.015405,69464.0,69445.0,0.14451543]
[1770504548131,0.014405,69464.0,69445.0,0.14451543]
[1770504548640,0.16629292,69464.0,69445.0,0.14451543]
[1770504548843,0.014405,69464.0,69445.0,0.14451543]
[1770504549039,0.015405,69464.0,69445.0,0.14451543]
[1770504550240,0.014405,69464.0,69445.0,0.14451543]
[1770504551040,0.16629292,69464.0,69445.0,0.14451543]
[1770504551742,0.014405,69464.0,69445.0,0.14451543]
[1770504552341,0.014405,69464.0,69445.0,0.15892443]
[1770504554535,0.014405,69467.0,69448.0,0.014408]
[1770504554738,0.14486894,69469.0,69449.0,0.1428385]
[1770504555339,0.15927494,69462.0,69449.0,0.1428385]
[1770504558544,0.014406,69462.0,69449.0,0.1428385]
[1770504560846,0.014406,69459.0,69446.0,0.1428385]
[1770504564444,0.14486894,69456.0,69442.0,0.11466743]
[1770504564645,0.14486894,69456.0,69443.0,0.1428385]
[1770504564852,0.14486894,69456.0,69444.0,0.1428385]
[1770504565051,0.014407,69457.0,69444.0,0.1428385]
[1770504566149,0.14486894,69469.0,69445.0,0.1428385]
[1770504566547,0.014406,69459.0,69445.0,0.1428385]
[1770504567455,0.014407,69457.0,69445.0,0.1428385]
[1770504570956,0.14486894,69467.0,69446.0,0.1428385]
[1770504571149,0.14486894,69467.0,69447.0,0.1428385]
[1770504572465,0.014406,69462.0,69447.0,0.1428385]
[1770504580073,0.14352475,69472.0,69447.0,0.1428385]
[1770504581375,0.014405,69464.0,69447.0,0.1428385]
[1770504582270,0.014406,69462.0,69447.0,0.1428385]
[1770504583473,0.014406,69462.0,69449.0,0.13685773]
[1770504632015,0.14299292,69477.0,69449.0,0.13685773]
[1770504632214,0.014401,69486.0,69449.0,0.13685773]
[1770504632215,0.014402,69478.0,69460.0,0.13626368]
[1770504632414,0.14299292,69485.0,69462.0,0.13626368]
[1770504632415,0.014402,69481.0,69462.0,0.13626368]
[1770504633615,0.001,69477.0,69462.0,0.13626368]
[1770504634515,0.014402,69481.0,69462.0,0.13626368]
[1770504635111,0.014401,69484.0,69464.0,0.13626368]
[1770504635314,0.014401,69484.0,69466.0,0.13626368]
[1770504637615,0.0144,69487.0,69470.0,0.13891226]
[1770504637815,0.0144,69491.0,69471.0,0.014404]
[1770504638014,0.0144,69491.0,69472.0,0.13891226]
[1770504638421,0.0144,69489.0,69472.0,0.13891226]
[1770504641221,0.014399,69492.0,69472.0,0.13891226]
[1770504641420,0.014399,69495.0,69474.0,0.13891226]
[1770504642218,0.14829892,69509.0,69476.0,0.13891226]
[1770504642418,0.14829892,69509.0,69468.0,0.11466743]
[1770504642419,0.014398,69501.0,69482.0,0.13891226]
[1770504643018,0.014398,69501.0,69484.0,0.13891226]
[1770504643219,0.014397,69505.0,69484.0,0.13891226]
[1770504643616,0.014397,69503.0,69484.0,0.13891226]
[1770504647224,0.14829892,69518.0,69493.0,0.13891226]
[1770504648432,0.014395,69513.0,69495.0,0.13891226]